Cogmind - Beta 11.1 @@@ ROGUE MODE // 2022.05.13 @ 01:59:43 Player: Olga Result: Destroyed by Y-45 Defender with Heavy Assault Rifle Performance ------------- Evolutions (2) 1000 Regions Visited (3) 600 Robots Destroyed (12) 60 Value Destroyed (204) 204 Prototype IDs (0) 0 Alien Tech Used (0) 0 Bonus (492) 492 TOTAL SCORE: 2356 Bonus ------- Pacifist 470 High Alert Combat Kills 22 Cogmind --------- Core Integrity 0/550 Matter 220/300 Energy 98/100 System Corruption 0% Temperature Cool (27) Movement Core (50) Location -8/Materials Parts ------- > --- POWER (1) -------- (None) > --- PROPULSION (4) --- (None) > --- UTILITY (4) ------ Advanced Visual Processing Unit > --- WEAPON (2) ------- (None) > --- INVENTORY (5) ---- System Shield Mini Grenade Launcher Heavy Mace Peak State ------------ > --- POWER ------------ Ion Engine > --- PROPULSION ------- Aluminum Leg Aluminum Leg > --- UTILITY ---------- Small Storage Unit > --- WEAPON ----------- Medium Laser Assault Rifle > --- INVENTORY -------- Light Ion Engine Light Treads Wheel Compact Wheel Small Laser [Rating: 6] Favorites ----------- Power Ion Engine Engine Ion Engine Propulsion Aluminum Leg Leg Aluminum Leg Utility Advanced Visual Processing Unit Storage Small Storage Unit Processor Advanced Visual Processing Unit Weapon Heavy Mace Energy Gun Medium Laser Ballistic Gun Assault Rifle Launcher Mini Grenade Launcher Impact Weapon Heavy Mace Build | -11 -10 -9 -8 ------- Run | Scr Mat Mat Mat Slots Evolved 4 | . . 2 2 Power . | . . . . Propulsion 2 | . . 2 . Utility 2 | . . . 2 Weapon . | . . . . Parts Attached 3 | . . . 3 Power . | . . . . Engine . | . . . . Core . | . . . . Reactor . | . . . . Propulsion . | . . . . Treads . | . . . . Leg . | . . . . Wheel . | . . . . Hover . | . . . . Flight . | . . . . Utility 1 | . . . 1 Device . | . . . . Storage . | . . . . Processor 1 | . . . 1 Hackware . | . . . . Protection . | . . . . Artifact . | . . . . Weapon 2 | . . . 2 Energy Gun . | . . . . Energy Cannon . | . . . . Ballistic Gun . | . . . . Ballistic Cannon . | . . . . Launcher 1 | . . . 1 Special Weapon . | . . . . Impact Weapon 1 | . . . 1 Slashing Weapon . | . . . . Piercing Weapon . | . . . . Special Melee Weapon . | . . . . Unidentified Prototypes . | . . . . Parts Lost . | . . . . Power . | . . . . Propulsion . | . . . . Utility . | . . . . Weapon . | . . . . Highest Loss Streak . | . . . . To Critical Strikes . | . . . . Average Slot Usage (%) 6 | . . . 11 Processor 3 | . . . 6 Impact Weapon 1 | . . . 3 Naked Turns 137 | . 71 40 26 Heaviest Build 3 | . . . 3 Greatest Support 3 | 3 3 3 3 Greatest Overweight (x) . | . . . . Average Overweight (x) . | . . . . Largest Inventory Capacity 8 | 8 5 5 5 Average Capacity 5 | 8 5 5 5 Most Carried 5 | 5 . . 3 Average Carried . | 3 . . 1 Final Capacity 5 | 5 5 5 5 Final Carried 3 | . . . 3 Class Distribution -------------------- 100% | Mutant Dominant Class ---------------- Mutant | -10/Materials Mutant | -9/Materials Mutant | -8/Materials Resources | -11 -10 -9 -8 ----------- Run | Scr Mat Mat Mat Matter Collected 210 | 200 . . 10 Remotely . | . . . . Salvage Created 123 | . . . 123 Parts 13 | . . . 13 Haulers Intercepted . | . . . . Recyclers Shooed . | . . . . Parts Field Recycled . | . . . . Retrieved Matter . | . . . . Parts Self-Destructed . | . . . . Prevented . | . . . . Kills | -11 -10 -9 -8 ------- Run | Scr Mat Mat Mat Combat Hostiles Destroyed 10 | . . . 10 AOE 10 | . . . 10 Classes Destroyed 4 | . . . 4 Builder 1 | . . . 1 Watcher 1 | . . . 1 Swarmer 8 | . . . 8 Grunt 2 | . . . 2 Best Kill Streak 11 | . . . 11 Combat Bots Only 10 | . . . 10 Max Kills in Single Turn 4 | . . . 4 Gunslinging . | . . . . Exploded 4 | . . . 4 Melee . | . . . . Uniques/NPCs Destroyed . | . . . . Combat | -11 -10 -9 -8 -------- Run | Scr Mat Mat Mat Damage Taken 764 | . 133 30 601 Core 721 | . 133 30 558 Absorbed by Shields . | . . . . Core Remaining (%) 79 | 100 46 92 . Volleys Fired 6 | . . . 6 Largest 1 | . . . 1 Hottest 30 | . . . 30 Shots Fired 6 | . . . 6 Gun . | . . . . Cannon . | . . . . Launcher 6 | . . . 6 Special . | . . . . Kinetic . | . . . . Thermal . | . . . . Explosive 6 | . . . 6 Electromagnetic . | . . . . Robot Hit Streak . | . . . . Robot Miss Streak 3 | . . . 3 Penetration Max . | . . . . Secondary Targets . | . . . . Shots Hit Robots 1 | . . . 1 Core Hits 15 | . . . 15 Critical Kills . | . . . . Critical Parts Destroyed 1 | . . . 1 Critical Strikes 1 | . . . 1 Smash 1 | . . . 1 Melee Attacks 1 | . . . 1 Impact 1 | . . . 1 Slashing . | . . . . Piercing . | . . . . Sneak Attacks 1 | . . . 1 Combat Hostiles . | . . . . Follow-up Attacks . | . . . . Damage Inflicted 892 | . . 10 882 Guns . | . . . . Cannons . | . . . . Explosions 759 | . . . 759 Melee 123 | . . . 123 Ramming 10 | . . 10 . Kinetic . | . . . . Thermal . | . . . . Explosive 759 | . . . 759 Electromagnetic . | . . . . Impact 123 | . . . 123 Slashing . | . . . . Piercing . | . . . . Highest Corruption . | . . . . Average Corruption . | . . . . Corruption Purged . | . . . . Corruption Blocked . | . . . . Overload Shots . | . . . . Overflow Damage 123 | . . . 123 Projectiles . | . . . . Explosions . | . . . . Melee 123 | . . . 123 Knockbacks 1 | . . . 1 Impact 1 | . . . 1 Kinetic . | . . . . Secondary . | . . . . Self-Inflicted Damage 26 | . . 4 22 Shots 1 | . . . 1 Rammed 2 | . . 2 . Targets Rammed 2 | . . 2 . Kicked . | . . . . Crushed . | . . . . Highest Temperature 5 | . . . 5 Average Temperature 5 | . . . 5 Received Heat Transfer 249 | . 6 9 234 Siege Activations . | . . . . Robots Corrupted . | . . . . Combat Hostiles . | . . . . Parts Fried 1 | . . . 1 Impact Corruptions 5 | . . . 5 Robots Melted . | . . . . Combat Hostiles . | . . . . Parts Melted . | . . . . Heat Transferred . | . . . . Parts Sabotaged . | . . . . Parts Stolen . | . . . . Parts Stripped . | . . . . Power Chain Reactions . | . . . . Missiles Intercepted . | . . . . Alert | -11 -10 -9 -8 ------- Run | Scr Mat Mat Mat Peak Influence 484 | . 69 63 484 Initial 28 | . . 28 26 Average 111 | . 27 44 180 Maximum Alert Level 2 | . . . 2 Low Security (%) 84 | 100 100 100 70 Level 1 3 | . . . 6 Level 2 11 | . . . 22 Level 3 . | . . . . Level 4 . | . . . . Level 5 . | . . . . High Security . | . . . . Max Security . | . . . . Squads Dispatched 6 | . 1 2 3 Investigation 1 | . . 1 . Extermination . | . . . . Reinforcement 5 | . 1 1 3 Assault . | . . . . Garrison . | . . . . Intercept . | . . . . Searches Triggered . | . . . . Construction Impeded . | . . . . Haulers Reinforced . | . . . . Active Scanning Responses . | . . . . Cargo Convoy Interrupts . | . . . . Stealth | -11 -10 -9 -8 --------- Run | Scr Mat Mat Mat Distress Signals 1 | . . . 1 Communications Jammed . | . . . . Distress Signals . | . . . . Times Spotted 47 | . 12 5 30 Peak Tracking Total 16 | . 11 6 16 Tactical Retreats 3 | . . 1 2 Traps | -11 -10 -9 -8 ------- Run | Scr Mat Mat Mat Traps Triggered 3 | . 1 1 1 Indirectly . | . . . . Trap Hack Attempts . | . . . . Triggered . | . . . . Disarmed . | . . . . Reprogrammed . | . . . . Reused . | . . . . Traps Extracted . | . . . . Installed . | . . . . Triggered . | . . . . Machines | -11 -10 -9 -8 ---------- Run | Scr Mat Mat Mat Machines Disabled . | . . . . Max in Single Turn . | . . . . Machines Sabotaged . | . . . . Garrisons Compromised . | . . . . Overloaded Fab Kills . | . . . . Hacking | -11 -10 -9 -8 --------- Run | Scr Mat Mat Mat Machines Accessed 6 | . 2 2 2 Terminals 6 | . 2 2 2 Fabricators . | . . . . Repair Stations . | . . . . Recycling Units . | . . . . Scanalyzers . | . . . . Garrison Access . | . . . . Total Hacks 18 | . 8 5 5 Successful 10 | . 2 4 4 Failed 8 | . 6 1 1 Catastrophic 2 | . 1 1 . Database Lockouts . | . . . . Manual 18 | . 8 5 5 Terminals 18 | . 8 5 5 Fabricators . | . . . . Repair Stations . | . . . . Recycling Units . | . . . . Scanalyzers . | . . . . Garrison Access . | . . . . Terminal Hacks 4 | . . 2 2 Level Access Points 2 | . . 1 1 Terminal Index 2 | . . 1 1 Fabricator Hacks . | . . . . Repair Station Hacks . | . . . . Recycling Unit Hacks . | . . . . Scanalyzer . | . . . . Garrison Access Hacks . | . . . . Unauthorized Hacks 6 | . 2 2 2 Terminals 6 | . 2 2 2 Botnet 6 | . 2 2 2 Fabricators . | . . . . Repair Stations . | . . . . Recycling Units . | . . . . Scanalyzers . | . . . . Garrison Access . | . . . . Data Cores Recovered . | . . . . Used . | . . . . Hacking Detections 4 | . 2 1 1 Full Trace Events . | . . . . Feedback Events . | . . . . Feedback Blocked . | . . . . Robot Schematics Acquired . | . . . . Robots Built . | . . . . Authchips . | . . . . Time . | . . . . Total Robot Build Rating . | . . . . Part Schematics Acquired . | . . . . Parts Built . | . . . . Authchips . | . . . . Time . | . . . . Total Part Build Rating . | . . . . Parts Repaired . | . . . . Time . | . . . . Parts Recycled . | . . . . Recycled Matter . | . . . . Retrieved Matter . | . . . . Retrieved Components . | . . . . Parts Scanalyzed . | . . . . Part Schematics Acquired . | . . . . Parts Damaged . | . . . . Bothacking | -11 -10 -9 -8 ------------ Run | Scr Mat Mat Mat Used RIF Installer . | . . . . Robots Hacked . | . . . . Non-combat . | . . . . Combat . | . . . . Robot Hacks Applied . | . . . . Relay Couplers Released . | . . . . Fabnet Peak Effective % . | . . . . Robots Rewired . | . . . . Allies Hacked . | . . . . Hacks Repelled . | . . . . Allies | -11 -10 -9 -8 -------- Run | Scr Mat Mat Mat Total Allies . | . . . . Largest Group . | . . . . Highest-Rated Group . | . . . . Highest-Rated Ally . | . . . . Total Orders . | . . . . Ally Attacks . | . . . . Total Damage . | . . . . Kills . | . . . . Allies Corrupted . | . . . . Allies Melted . | . . . . Intel | -11 -10 -9 -8 ------- Run | Scr Mat Mat Mat Robot Analysis Total . | . . . . Derelict Logs Recovered . | . . . . Drone Launches . | . . . . Drone Recoveries . | . . . . Exploration | -11 -10 -9 -8 ------------- Run | Scr Mat Mat Mat Turns Passed 244 | 3 71 40 130 Spaces Moved 434 | 1 141 76 216 Core 434 | 1 141 76 216 Treads . | . . . . Legs . | . . . . Wheels . | . . . . Hover . | . . . . Flight . | . . . . Fastest Speed 50 | 50 50 50 50 Average Speed 50 | 50 50 50 50 Slowest Speed 50 | 50 50 50 50 Overloaded Moves . | . . . . Propulsion Burnouts . | . . . . Robots Hopped . | . . . . Cave-ins Triggered . | . . . . Exploration Rate (%) 25 | 2 43 16 40 Regions Visited 3 Branch Regions . Pre-discovered Areas . | . . . . Known Exits Taken 1 | . . 1 . Unknown Exits Taken 2 | 1 1 . . Scrap Searched . | . . . . Spaces Dug . | . . . . Terrain Destroyed 32 | . . . 32 Melee . | . . . . Projectile . | . . . . AOE 32 | . . . 32 Terrain Rammed . | . . . . Walls Destroyed . | . . . . Machines Disabled . | . . . . Actions | -11 -10 -9 -8 --------- Run | Scr Mat Mat Mat Total 453 | 6 140 77 230 Wait . | . . . . Move 431 | . 140 75 216 Hop . | . . . . Pick Up 3 | . . . 3 Fast Attach 1 | . . . 1 Attach 1 | . . . 1 Detach 1 | . . . 1 Swap 1 | . . . 1 Drop 6 | 6 . . . Fire 6 | . . . 6 Melee 1 | . . . 1 Ram 2 | . . 2 . Kick . | . . . . Crush . | . . . . Escape Stasis . | . . . . Rewire . | . . . . Trap . | . . . . Miscellaneous . | . . . . Route ------- -11/Scrapyard -10/Materials (discovered 2 exits: *Mat / [*Min]) -9/Materials (discovered 3 exits: *Mat x3) -8/Materials (discovered 3 exits: Fac x3) History --------- Turn | Location | Event 4 | -11/Scrapyard | Released all parts (6) 4 | -11/Scrapyard | Discovered new exit (range 0) 4 | -11/Scrapyard | Entered Materials 16 | -10/Materials | Discovered new exit (range 13) 71 | -10/Materials | Core integrity fell below 50% 71 | -10/Materials | Discovered new exit (range 9) 75 | -10/Materials | Entered another Materials area 75 | -9/Materials | Evolved 2 slots: Propulsion x2 104 | -9/Materials | Identified exit to Materials 115 | -9/Materials | Entered another Materials area 115 | -8/Materials | Evolved 2 slots: Utility x2 229 | -8/Materials | Core integrity fell below 50% 234 | -8/Materials | Identified exit to Factory 237 | -8/Materials | Destroyed 10 combat bots 244 | -8/Materials | Core integrity fell below 20% 245 | -8/Materials | Destroyed by Y-45 Defender with Heavy Assault Rifle Last Messages --------------- 00222_ U-05 Engineer destroyed. 00222_ K-01 Serf collects debris. 00225_ R-06 Scavenger collects Imp. Heat Sink. 00234_ Connecting with Terminal... >>Trojan(Botnet) Trojan loaded successfully. Testing... Terminal linked with 1 system. Awaiting botnet instructions. >>Access(Main) Found 3 level access points to Factory: (7,80) (12,7) (84,19) Map updated. 00240_ Triggered Blade Trap. 00240_ Massive razor-sharp blades shoot up from within the floor. 00241_ Penetrated by Slug. 00243_ U-05 Engineer builds a Wall. 00245_ U-05 Engineer lays Concrete. Map ----- +----------------------------------------------------+ | | | | | | | | | | | | | | | | | | | | | | | | | | | | | ??????????????????????????????????????????? | | ?????????????????????????########?????????? | | ?????????????????????????# #?????????? | | ?????????????????????????# ! ########### | | ????????????????????????## # # | | ???????????############## # | | ???????????? % # [ # | | ????????????